bitfinex-derivatives/quotes_SOLF0:USTF0_20240906
["timestamp","ask_amount","ask_price","bid_price","bid_amount"]
[1725657107997,36.92448206,122.48,122.37,32.84]
[1725657108291,36.92448206,122.48,122.38,2.6837]
[1725657108793,61.40448206,122.48,122.38,2.6837]
[1725657109198,61.40448206,122.48,122.38,6.7713]
[1725657109592,32.84,122.45,122.38,2.6837]
[1725657109794,36.9257,122.45,122.4,4.087]
[1725657109995,32.84,122.45,122.4,4.087]
[1725657110392,32.84,122.45,122.35,5.3261]
[1725657111403,4.086,122.44,122.4,4.087]
[1725657111606,32.84,122.45,122.35,9.443209]
[1725657111796,32.84,122.45,122.35,5.3261]
[1725657112003,32.84,122.43,122.35,5.3261]
[1725657112403,4.0874,122.4,122.36,4.0882]
[1725657112703,4.0874,122.4,122.35,5.3261]
[1725657113300,4.0874,122.4,122.37,4.0879]
[1725657113496,32.84,122.43,122.35,5.3261]
[1725657113696,32.84,122.45,122.35,5.3261]
[1725657113896,4.08448206,122.48,122.35,5.3261]
[1725657113897,32.84,122.43,122.37,4.0879]
[1725657114705,32.84,122.43,122.38,4.0878]
[1725657114998,32.84,122.45,122.35,42.28429078]
[1725657115199,4.0853,122.46,122.35,42.28429078]
[1725657115400,4.0853,122.46,122.37,32.84]
[1725657115606,4.16725093,122.45,122.37,32.84]
[1725657115799,32.84,122.47,122.37,32.84]
[1725657115800,8.07377255,122.44,122.37,32.84]
[1725657116000,8.07377255,122.44,122.35,42.28429078]
[1725657116001,3.98777255,122.44,122.35,42.28429078]
[1725657116207,32.84,122.45,122.35,38.1661]
[1725657116408,4.09202537,122.46,122.35,42.33784812]
[1725657116708,32.84,122.48,122.35,42.33784812]
[1725657116709,32.84,122.5,122.37,32.84]
[1725657117013,32.84,122.48,122.35,9.49784812]
[1725657117198,36.9618703,122.48,122.35,42.33784812]
[1725657117398,4.086,122.44,122.35,42.33784812]
[1725657117803,32.84,122.46,122.35,32.84]
[1725657118107,32.84,122.44,122.33,2.6044]
[1725657118311,32.84,122.44,122.37,4.088]
[1725657118610,4.087,122.41,122.37,4.088]
[1725657118812,8.24260237,122.41,122.38,4.0878]
[1725657119012,28.6018703,122.48,122.36,32.84]
[1725657119013,32.84,122.46,122.36,32.84]
[1725657119204,4.1218703,122.48,122.36,32.84]
[1725657119402,32.84,122.45,122.38,4.0878]
[1725657119607,36.92121272,122.45,122.33,35.4444]
[1725657119907,4.0864,122.43,122.33,35.4444]
[1725657120110,36.92121272,122.45,122.39,4.0873]
[1725657120412,4.0864,122.43,122.33,35.4444]
[1725657120613,4.0864,122.43,122.39,4.0873]
[1725657120800,36.92121272,122.45,122.33,35.4444]
[1725657121000,4.087,122.41,122.33,2.6044]
[1725657121711,4.0872,122.4,122.36,4.0883]
[1725657122304,4.0883,122.37,122.33,2.6044]
[1725657122507,4.16738744,122.36,122.29,5.5462]
[1725657122807,32.84,122.39,122.32,4.0896]
[1725657123010,32.84,122.39,122.29,5.5462]
[1725657123208,32.84,122.39,122.29,2.8151]
[1725657123411,32.84,122.37,122.29,2.8151]
[1725657123619,4.10198459,122.36,122.29,2.8151]
[1725657123810,32.84,122.44,122.29,35.6551]
[1725657124011,32.84,122.42,122.31,32.84]
[1725657124215,32.84,122.44,122.31,32.84]
[1725657124516,4.0868,122.41,122.37,4.088]
[1725657124717,8.21191958,122.41,122.37,4.088]
[1725657124906,8.21191958,122.41,122.33,37.01747608]
[1725657125107,4.12511958,122.41,122.33,37.01747608]
[1725657125306,32.84,122.44,122.33,32.84]
[1725657125713,4.0871,122.41,122.37,4.088]
[1725657126918,8.23996107,122.44,122.33,32.84]
[1725657127211,32.84,122.46,122.36,32.84]
[1725657127411,32.84,122.46,122.4,32.84]
[1725657127412,4.0855,122.45,122.4,32.84]
[1725657127712,3.99962875,122.46,122.38,32.84]
[1725657127917,32.84,122.49,122.41,4.0865]
[1725657128410,4.0854,122.46,122.41,4.0865]
[1725657128610,8.12591221,122.46,122.38,32.84]
[1725657128805,4.05727443,122.47,122.4,32.84]
[1725657129008,32.84,122.5,122.38,35.5668]
[1725657129514,99.56158706,122.51,122.38,35.5668]
[1725657129515,99.56158706,122.51,122.41,32.84]
[1725657129718,32.84,122.52,122.42,2.6839]
[1725657129913,37.00765923,122.54,122.42,2.6839]
[1725657130109,32.84,122.52,122.42,2.6839]
[1725657130311,32.84,122.5,122.42,2.6839]
[1725657130715,32.84,122.48,122.42,2.6839]
[1725657131011,32.84,122.56,122.42,2.6839]
[1725657131012,4.0838,122.51,122.47,4.0846]
[1725657131214,32.84,122.52,122.42,35.5239]
[1725657131516,36.98049305,122.52,122.42,35.5239]
[1725657132111,4.0836,122.51,122.47,4.0846]
[1725657132719,41.06389305,122.52,122.42,35.5239]
[1725657133215,16.27364005,122.61,122.44,32.84]
[1725657133216,32.84,122.57,122.44,32.84]
[1725657133421,32.84,122.57,122.46,32.84]
[1725657133720,4.0821,122.56,122.51,4.0832]
[1725657134124,32.84,122.57,122.51,4.0832]
[1725657134416,32.84,122.54,122.46,2.6398]
[1725657134816,4.15629377,122.54,122.46,6.6915432]
[1725657135021,32.84,122.56,122.46,6.6915432]
[1725657135211,36.922,122.56,122.52,4.0831]
[1725657135415,32.84,122.56,122.46,6.6915432]
[1725657135616,32.84,122.58,122.48,32.84]
[1725657135812,4.00069311,122.57,122.53,4.0826]
[1725657136014,32.84,122.58,122.48,32.84]
[1725657136418,4.02968956,122.57,122.53,4.0826]
[1725657137325,32.84,122.56,122.51,4.0833]
[1725657137527,32.84,122.56,122.46,39.5315432]
[1725657137819,32.84,122.56,122.51,4.0833]
[1725657138227,32.84,122.56,122.46,6.6915432]
[1725657138228,32.84,122.54,122.46,2.6398]
[1725657138429,32.84,122.54,122.46,6.78324115]
[1725657138721,41.10750032,122.56,122.51,4.0833]
[1725657138923,4.082,122.56,122.46,39.60037402]
[1725657139113,4.13813271,122.56,122.46,39.60037402]
[1725657139319,4.0816,122.57,122.53,4.0826]
[1725657139513,4.0258388,122.58,122.48,32.84]
[1725657139724,4.0811,122.59,122.5,32.84]
[1725657140023,32.84,122.56,122.43,32.84]
[1725657140231,32.84,122.56,122.46,2.696]
[1725657140818,32.84,122.58,122.46,2.696]
[1725657141219,36.95026378,122.58,122.46,2.696]
[1725657141928,32.84,122.56,122.46,2.696]
[1725657142319,32.84,122.53,122.46,2.696]
[1725657142520,4.0837,122.51,122.46,2.696]
[1725657142722,32.84,122.53,122.46,2.696]
[1725657142934,32.84,122.51,122.44,2.6026]
[1725657143124,32.84,122.51,122.42,2.6839]
[1725657143322,32.84,122.49,122.42,2.6839]
[1725657143625,32.84,122.49,122.38,37.9683]
[1725657143834,32.84,122.47,122.38,5.1283]
[1725657144125,32.84,122.49,122.38,37.9683]
[1725657144625,4.07586777,122.48,122.38,37.9683]
[1725657145228,32.84,122.51,122.38,37.9683]
[1725657145525,32.84,122.51,122.41,32.84]
[1725657145830,4.0845,122.49,122.42,2.6316]
[1725657146031,36.83618915,122.51,122.42,2.6316]
[1725657146228,32.84,122.49,122.42,2.6316]
[1725657146430,3.99618915,122.51,122.38,5.1283]
[1725657146626,57.32,122.56,122.39,2.6356]
[1725657146627,32.84,122.48,122.39,2.6356]
[1725657146926,36.8562166,122.48,122.39,2.6356]
[1725657147226,32.84,122.46,122.39,2.6356]
[1725657147632,32.84,122.43,122.32,2.7403]
[1725657147924,32.84,122.43,122.33,5.2973]
[1725657148426,32.84,122.48,122.36,32.84]
[1725657148635,32.84,122.52,122.4,32.84]
[1725657148926,32.84,122.52,122.41,12.03787436]
[1725657149225,32.84,122.5,122.41,8.0376]
[1725657149422,4.17441261,122.49,122.41,8.0376]
[1725657149626,32.84,122.52,122.41,8.0376]
[1725657149922,4.0844,122.49,122.45,4.0853]
[1725657150334,4.0845,122.48,122.45,4.0853]
[1725657150629,4.0845,122.48,122.44,4.0857]
[1725657151230,4.0845,122.48,122.45,4.0855]
[1725657151524,32.84,122.52,122.41,8.0376]
[1725657151719,32.84,122.52,122.45,4.0855]
[1725657151922,3.98720985,122.51,122.42,32.84]
[1725657152126,4.084,122.5,122.42,32.84]
[1725657152326,4.084,122.5,122.46,4.0849]
[1725657152529,32.84,122.54,122.42,32.84]
[1725657152728,32.84,122.56,122.44,32.84]
[1725657153622,32.84,122.54,122.44,32.84]
[1725657153923,32.84,122.54,122.42,32.84]
[1725657154333,32.84,122.52,122.42,32.84]
[1725657154834,4.0836,122.51,122.47,4.0848]
[1725657155131,32.84,122.52,122.42,32.84]
[1725657155629,3.99357622,122.51,122.41,8.0376]
[1725657155837,4.17114241,122.58,122.44,32.84]
[1725657156029,32.84,122.55,122.44,32.84]
[1725657156328,4.0843,122.49,122.45,4.0853]
[1725657156529,32.84,122.51,122.41,40.8776]
[1725657156733,4.06677563,122.52,122.41,40.8776]
[1725657156933,4.0837,122.51,122.47,4.0846]
[1725657157124,4.00223661,122.52,122.47,4.0846]
[1725657157536,32.84,122.53,122.47,4.0846]
[1725657157928,4.0845,122.48,122.41,8.0376]
[1725657158129,32.84,122.51,122.41,8.0376]
[1725657158929,32.84,122.51,122.46,4.0849]
[1725657158930,4.0839,122.5,122.46,4.0849]
[1725657159133,8.1623,122.59,122.41,8.0376]
[1725657159134,32.84,122.54,122.43,32.84]
[1725657159329,4.03124387,122.55,122.43,32.84]
[1725657159525,32.84,122.56,122.43,32.84]
[1725657160037,4.0831,122.53,122.49,4.084]
[1725657160434,32.84,122.56,122.46,4.10353669]
[1725657160630,3.99121734,122.55,122.51,4.0833]
[1725657161336,8.07361734,122.55,122.51,4.0833]
[1725657161538,32.84,122.56,122.48,4.09863549]
[1725657161728,4.082,122.56,122.49,5.3383]
[1725657162038,4.082,122.56,122.52,4.083]
[1725657162637,4.082,122.56,122.49,5.3383]
[1725657162638,8.09148843,122.55,122.49,5.3383]
[1725657162836,27.46,122.56,122.49,5.3383]
[1725657163233,31.48045016,122.56,122.49,5.3383]
[1725657163540,35.56245016,122.56,122.52,4.0829]
[1725657163933,35.56245016,122.56,122.53,4.0827]
[1725657164134,4.0822,122.55,122.49,5.3383]
[1725657164335,27.46,122.54,122.49,2.5891]
[1725657164641,27.46,122.54,122.49,6.673]
[1725657164838,31.48045016,122.56,122.49,2.5891]
[1725657165042,27.46,122.56,122.49,2.5891]
[1725657165240,4.0828,122.54,122.5,4.0836]
[1725657165441,8.21882024,122.54,122.5,4.0836]
[1725657165646,27.46,122.54,122.49,2.5891]
[1725657165838,4.1566401,122.63,122.49,2.5891]
[1725657166046,27.46,122.56,122.49,2.5891]
[1725657166245,31.47041374,122.56,122.49,2.5891]
[1725657166548,31.47041374,122.56,122.5,4.0838]
[1725657166738,27.46,122.54,122.43,27.46]
[1725657166944,27.46,122.52,122.47,4.0848]
[1725657167649,8.09819808,122.51,122.47,4.0848]
[1725657167844,4.01449808,122.51,122.43,2.6499]
[1725657168045,4.0847,122.48,122.43,2.6499]
[1725657168252,4.11742345,122.5,122.43,2.6499]
[1725657168445,27.46,122.54,122.43,2.6499]
[1725657168648,4.084,122.5,122.43,2.6499]
[1725657168844,31.46592096,122.54,122.43,2.6499]
[1725657169049,4.00592096,122.54,122.43,2.6499]
[1725657169349,27.46,122.6,122.43,2.6499]
[1725657169551,1.24994579,122.59,122.43,2.6499]
[1725657169855,27.46,122.56,122.45,27.46]
[1725657170045,27.46,122.56,122.5,4.0836]
[1725657170046,4.00370733,122.55,122.5,4.0836]
[1725657170651,27.46,122.56,122.45,27.46]
[1725657170851,51.99,122.6,122.43,2.6499]
[1725657170852,27.46,122.53,122.43,30.1099]
[1725657171248,27.46,122.55,122.49,4.084]
[1725657171452,4.06049461,122.54,122.46,4.07070814]
[1725657171950,27.46,122.57,122.47,27.46]
[1725657172450,4.0825,122.54,122.5,4.0836]
[1725657172858,31.55184138,122.55,122.45,27.46]
[1725657173052,27.46,122.55,122.45,27.46]
[1725657173361,3.98320481,122.54,122.45,27.46]
[1725657173550,4.0829,122.53,122.49,4.084]
[1725657173858,8.16698163,122.53,122.49,4.084]
[1725657174049,4.08408163,122.53,122.45,27.46]
[1725657174250,27.46,122.55,122.45,27.46]
[1725657174453,27.46,122.51,122.43,2.6499]
[1725657174660,27.46,122.53,122.43,2.6499]
[1725657174852,31.45954114,122.55,122.45,27.46]
[1725657175154,31.45954114,122.55,122.47,27.46]
[1725657175155,3.99954114,122.55,122.47,27.46]
[1725657175362,4.0825,122.55,122.51,4.0834]
[1725657175656,4.05712669,122.55,122.48,4.17597346]
[1725657175853,4.0826,122.54,122.5,4.0836]
[1725657176053,27.46,122.57,122.48,4.17597346]
[1725657176255,27.46,122.59,122.49,32.8223]
[1725657176552,4.0817,122.57,122.5,34.36325306]
[1725657176756,27.46,122.6,122.5,34.36325306]
[1725657176957,27.46,122.62,122.55,4.0822]
[1725657177452,4.0808,122.59,122.55,4.0822]
[1725657178158,4.0808,122.59,122.5,6.90325306]
[1725657178159,4.0806,122.6,122.56,4.0818]
[1725657178346,4.03915673,122.63,122.54,27.46]
[1725657178546,27.46,122.64,122.54,27.46]
[1725657178751,31.50609967,122.64,122.56,4.0818]
[1725657178950,31.50609967,122.64,122.54,27.46]
[1725657179351,4.0807,122.6,122.55,4.082]
[1725657179549,4.0807,122.6,122.54,27.46]
[1725657180648,4.0807,122.6,122.56,4.0818]
[1725657181362,31.50609967,122.64,122.55,4.082]
[1725657181657,31.50609967,122.64,122.54,27.46]
[1725657181857,4.04609967,122.64,122.56,27.46]
[1725657182049,262.67025465,122.75,122.58,27.46]
[1725657182050,27.46,122.68,122.58,27.46]
[1725657182249,31.61787659,122.68,122.58,27.46]
[1725657182452,4.15787659,122.68,122.64,4.079]
[1725657182754,27.46,122.75,122.65,27.46]
[1725657183054,27.46,122.79,122.65,4.02606835]
[1725657183261,4.00199192,122.8,122.73,27.46]
[1725657183554,27.46,122.83,122.73,27.46]
[1725657183754,1.25320735,122.82,122.73,27.46]
[1725657183946,27.46,122.77,122.69,27.46]
[1725657184148,4.17134306,122.76,122.69,27.46]
[1725657184351,4.0761,122.74,122.67,30.2279]
[1725657184556,4.07626158,122.75,122.67,30.2279]
[1725657184757,27.46,122.73,122.66,5.4285]
[1725657185059,31.53136468,122.73,122.66,5.4285]
[1725657185457,4.07136468,122.73,122.66,5.4285]
[1725657185654,27.46,122.75,122.68,4.0776]
[1725657185849,27.46,122.77,122.67,31.55621899]
[1725657186162,4.04196714,122.76,122.71,4.0768]
[1725657186359,27.46,122.78,122.68,31.63780073]
[1725657186857,27.46,122.8,122.72,4.0764]
[1725657187063,4.0751,122.77,122.72,4.0764]
[1725657187356,4.0751,122.77,122.71,27.46]
[1725657187357,27.46,122.78,122.69,2.6667]
[1725657187659,27.46,122.76,122.66,32.8885]
[1725657187968,31.53582356,122.76,122.66,32.8885]
[1725657188255,27.46,122.72,122.63,27.46]
[1725657188860,27.46,122.7,122.61,7.9239]
[1725657189254,4.0781,122.68,122.61,7.9239]
[1725657189459,27.46,122.68,122.49,8.1677]
[1725657189659,4.03569077,122.72,122.55,27.46]
[1725657189660,27.46,122.66,122.55,27.46]
[1725657189853,4.0786,122.66,122.61,4.08]
[1725657190058,27.46,122.68,122.61,4.08]
[1725657190558,27.46,122.7,122.62,4.0795]
[1725657190857,27.46,122.67,122.57,27.46]
[1725657191059,27.46,122.67,122.55,31.57320606]
[1725657191060,27.46,122.65,122.55,31.57320606]
[1725657191259,27.46,122.65,122.55,27.46]
[1725657191658,27.46,122.65,122.57,4.0813]
[1725657191659,4.0801,122.62,122.57,4.0813]
[1725657192164,4.0792,122.64,122.6,4.0802]
[1725657192859,27.46,122.67,122.59,31.5408]
[1725657193059,31.6332391,122.67,122.59,27.46]
[1725657194157,4.1732391,122.67,122.59,27.46]
[1725657194361,27.46,122.69,122.59,27.46]
[1725657194765,31.60426395,122.69,122.59,27.46]
[1725657195766,31.60426395,122.69,122.61,27.46]
[1725657195961,4.0776,122.69,122.64,4.0789]
[1725657196362,31.62480566,122.7,122.59,27.46]
[1725657196561,4.0794,122.64,122.59,4.0807]
[1725657196761,27.46,122.66,122.56,5.4192]
[1725657196957,27.46,122.64,122.56,5.4192]
[1725657197265,31.6239896,122.64,122.56,9.501]
[1725657197661,31.6239896,122.64,122.56,5.4192]
[1725657197865,27.46,122.58,122.41,27.46]
[1725657198059,27.46,122.56,122.46,5.4093]
[1725657198463,4.0832,122.52,122.47,4.0846]
[1725657198866,4.0497012,122.53,122.46,5.4093]
[1725657199067,27.46,122.54,122.46,5.4093]
[1725657199267,27.46,122.52,122.43,2.5189]
[1725657199667,27.46,122.54,122.43,29.9789]
[1725657199870,27.46,122.54,122.44,5.4093]
[1725657200070,32.93,122.54,122.44,5.4093]
[1725657200669,4.08033125,122.56,122.45,32.93]
[1725657200872,32.93,122.57,122.45,32.93]
[1725657201072,4.0832,122.52,122.45,32.93]
[1725657201469,36.9821516,122.57,122.45,32.93]
[1725657201765,36.9821516,122.57,122.44,5.4093]
[1725657201766,36.9821516,122.57,122.47,32.93]
[1725657202165,36.9821516,122.57,122.47,37.0972524]
[1725657202367,36.9821516,122.57,122.47,32.93]
[1725657202773,4.0825,122.55,122.51,4.0835]
[1725657202963,4.0825,122.55,122.47,37.1164488]
[1725657203163,4.0822,122.55,122.5,4.0838]
[1725657203364,32.93,122.59,122.47,37.00903065]
[1725657203565,37.09684397,122.59,122.47,32.93]
[1725657203769,4.0824,122.55,122.5,4.0836]
[1725657204277,32.93,122.56,122.47,4.0846]
[1725657204473,32.93,122.52,122.44,5.4093]
[1725657204881,32.93,122.52,122.44,9.495]
[1725657205177,37.04196839,122.52,122.44,9.495]
[1725657206272,32.93,122.5,122.38,32.93]
[1725657206574,61.62684397,122.59,122.39,2.7064]
[1725657206575,4.0862,122.43,122.39,2.7064]
[1725657206779,4.0862,122.43,122.38,4.0876]
[1725657206970,4.04211477,122.42,122.35,5.2915]
[1725657207176,4.0874,122.4,122.35,5.2915]
[1725657207487,3.99268618,122.43,122.35,5.2915]
[1725657207678,32.93,122.46,122.35,5.2915]
[1725657207870,32.93,122.53,122.35,5.2915]
[1725657207871,32.93,122.5,122.41,4.0867]
[1725657208075,32.93,122.5,122.38,32.93]
[1725657208273,32.93,122.5,122.41,4.0867]
[1725657208475,348.16684397,122.59,122.4,32.93]
[1725657208668,348.16684397,122.59,122.35,5.2915]
[1725657208669,32.93,122.48,122.38,32.93]
[1725657208976,32.93,122.48,122.36,32.93]
[1725657208977,36.95316578,122.48,122.36,32.93]
[1725657209473,4.0861,122.44,122.39,4.0873]
[1725657209781,4.0861,122.44,122.36,32.93]
[1725657209981,32.93,122.5,122.38,32.93]
[1725657210675,4.0848,122.47,122.43,4.0858]
[1725657210979,4.15928793,122.49,122.41,2.5399]
[1725657211979,4.0851,122.47,122.43,4.0861]
[1725657212372,4.15928793,122.49,122.41,2.5399]
[1725657212676,32.93,122.5,122.41,2.5399]
[1725657212877,32.93,122.48,122.38,32.93]
[1725657213273,4.086,122.44,122.4,4.087]
[1725657213671,32.93,122.48,122.38,32.93]
[1725657213878,32.93,122.51,122.38,32.93]
[1725657214075,4.05584596,122.5,122.4,32.93]
[1725657214282,4.05584596,122.5,122.41,4.0382758]
[1725657214482,4.0843,122.49,122.45,4.0853]
[1725657215283,32.93,122.55,122.42,38.3923]
[1725657215476,32.93,122.53,122.43,2.6762]
[1725657215877,32.93,122.53,122.46,4.085]
[1725657216287,32.93,122.53,122.43,2.6762]
[1725657217486,4.084,122.5,122.43,2.6762]
[1725657217779,4.11393834,122.51,122.43,2.6762]
[1725657217984,32.93,122.53,122.43,2.6762]
[1725657218585,4.0842,122.49,122.46,4.085]
[1725657220882,4.16663924,122.5,122.43,2.6762]
[1725657221072,27.44,122.52,122.43,2.6762]
[1725657221880,27.44,122.52,122.42,37.07064958]
[1725657221881,27.44,122.5,122.3,8.1808]
[1725657222074,27.44,122.4,122.31,1.50149028]
[1725657222286,27.44,122.36,122.29,2.8242]
[1725657222676,4.09,122.32,122.29,2.8242]
[1725657223081,27.44,122.36,122.29,2.8242]
[1725657223481,27.44,122.36,122.29,6.9149]
[1725657223680,27.44,122.38,122.29,2.8242]
[1725657223975,4.088,122.38,122.29,35.8242]
[1725657224180,33.0,122.38,122.29,2.8242]
[1725657225485,33.0,122.42,122.31,33.0]
[1725657225686,37.16534193,122.42,122.31,33.0]
[1725657225885,4.0873,122.4,122.35,4.0886]
[1725657226087,37.16534193,122.42,122.31,33.0]
[1725657226285,33.0,122.45,122.33,33.0]
[1725657226587,33.0,122.45,122.34,2.6394]
[1725657227089,33.0,122.45,122.35,2.5817]
[1725657227288,37.06813105,122.45,122.35,2.5817]
[1725657227481,4.086,122.44,122.36,2.8264]
[1725657228489,33.0,122.49,122.37,33.0]
[1725657228682,33.0,122.49,122.41,4.0866]
[1725657228886,4.0852,122.46,122.37,33.0]
[1725657229088,4.0852,122.46,122.42,4.0862]
[1725657230586,33.0,122.51,122.39,33.0]
[1725657230783,37.13525771,122.53,122.41,33.0]
[1725657230990,33.0,122.53,122.42,6.87071345]
[1725657231189,33.0,122.59,122.45,4.0853]
[1725657231190,33.0,122.51,122.45,4.0853]
[1725657231800,33.0,122.51,122.46,4.0851]
[1725657232095,37.05357029,122.53,122.43,5.3727]
[1725657232299,33.0,122.53,122.48,4.0843]
[1725657232503,33.0,122.53,122.43,5.3727]
[1725657232700,4.0838,122.51,122.47,4.0846]
[1725657233093,33.0,122.53,122.43,5.3727]
[1725657233296,4.0834,122.52,122.48,4.0845]
[1725657233897,4.0834,122.52,122.43,5.3727]
[1725657233898,4.0835,122.51,122.47,4.0847]
[1725657234106,37.00125561,122.53,122.43,5.3727]
[1725657234798,33.0,122.56,122.44,33.0]
[1725657234993,3.98582469,122.55,122.44,33.0]
[1725657235197,33.0,122.56,122.44,33.0]
[1725657235598,33.0,122.56,122.48,4.0843]
[1725657235599,4.0834,122.52,122.48,4.0843]
[1725657237001,33.0,122.54,122.47,4.0847]
[1725657237196,33.0,122.52,122.43,5.3727]
[1725657237797,33.0,122.54,122.43,5.3727]
[1725657238109,33.0,122.54,122.49,4.0841]
[1725657238306,37.01310378,122.54,122.49,4.0841]
[1725657238698,37.01310378,122.54,122.5,4.0838]
[1725657238904,37.01310378,122.54,122.44,33.0]
[1725657239303,4.01310378,122.54,122.5,4.0837]
[1725657239602,33.0,122.56,122.48,4.0752021]
[1725657239805,8.22256021,122.55,122.51,4.0833]
[1725657240408,4.14016021,122.55,122.46,33.0]
[1725657241110,4.0827,122.54,122.51,4.0835]
[1725657241813,150.92855582,122.58,122.48,4.11797632]
[1725657242110,150.92855582,122.58,122.46,33.0]
[1725657242111,4.0819,122.56,122.46,33.0]
[1725657242309,150.92855582,122.58,122.46,33.0]
[1725657242513,33.0,122.63,122.5,33.0]
[1725657242807,33.0,122.65,122.52,33.0]
[1725657243006,33.0,122.65,122.54,33.0]
[1725657243206,4.0795,122.63,122.54,33.0]
[1725657243411,33.0,122.65,122.54,33.0]
[1725657243601,4.13899036,122.66,122.54,33.0]
[1725657243808,33.0,122.67,122.54,33.0]
[1725657244110,4.0794,122.64,122.61,4.0801]
[1725657244409,4.09922548,122.66,122.56,33.0]
[1725657244810,4.0792,122.64,122.6,4.0803]
[1725657246508,4.09922548,122.66,122.6,4.0803]
[1725657246713,33.0,122.67,122.6,4.0803]
[1725657247015,4.0797,122.63,122.59,4.0807]
[1725657247712,4.0799,122.62,122.54,33.0]
[1725657247910,4.0799,122.62,122.54,27.43]
[1725657248109,31.61147793,122.67,122.56,27.43]
[1725657248419,27.43,122.67,122.56,27.43]
[1725657248606,27.43,122.65,122.54,27.43]
[1725657248807,4.0799,122.62,122.58,4.0809]
[1725657249115,4.0799,122.62,122.54,27.43]
[1725657249516,4.0799,122.62,122.58,4.0809]
[1725657250210,27.43,122.61,122.51,8.0885]
[1725657250408,27.43,122.59,122.51,12.21732739]
[1725657250811,4.0813,122.58,122.51,12.21732739]
[1725657251007,27.43,122.59,122.51,12.21732739]
[1725657251415,27.43,122.59,122.51,8.0885]
[1725657251919,4.0807,122.6,122.56,4.0817]
[1725657252322,4.0807,122.6,122.57,4.0814]
[1725657252915,8.0906878,122.61,122.58,4.0812]
[1725657253110,8.1514,122.75,122.58,27.43]
[1725657253423,27.43,122.68,122.59,9.30413149]
[1725657253612,27.43,122.66,122.59,5.2196]
[1725657254012,32.92,122.62,122.55,4.0819]
[1725657254217,32.92,122.62,122.52,5.2196]
[1725657254411,32.92,122.6,122.52,5.2196]
[1725657255019,4.0817,122.57,122.53,4.0826]
[1725657255319,37.03065682,122.6,122.53,4.0826]
[1725657255622,37.03065682,122.6,122.52,5.2196]
[1725657255919,37.03065682,122.6,122.53,4.05146662]
[1725657256120,32.92,122.62,122.52,5.2196]
[1725657256321,32.92,122.62,122.56,4.0818]
[1725657256322,4.0806,122.6,122.56,4.0818]
[1725657256520,4.16814606,122.61,122.52,5.2196]
[1725657256521,4.16814606,122.61,122.54,4.13997739]
[1725657256718,4.12943439,122.68,122.53,32.92]
[1725657256719,32.92,122.65,122.53,32.92]
[1725657256914,32.92,122.65,122.53,37.01466258]
[1725657257526,4.0797,122.63,122.55,32.92]
[1725657258214,8.22009388,122.64,122.57,32.92]
[1725657258419,4.0793,122.64,122.57,32.92]
[1725657258619,4.0793,122.64,122.58,2.6194]
[1725657258927,4.0789,122.65,122.61,4.0799]
[1725657259517,8.18213565,122.65,122.61,4.0799]
[1725657260424,4.0792,122.64,122.59,5.4696]